bitfinex-derivatives/quotes_ETHF0:USTF0_20240924
["timestamp","ask_amount","ask_price","bid_price","bid_amount"]
[1727199329846,3.53025687,2647.6,2646.7,0.4084]
[1727199329847,6.36033687,2647.6,2646.7,0.4084]
[1727199330051,0.37781,2647.0,2646.7,0.37784]
[1727199330257,0.37781,2647.0,2646.6,3.31474017]
[1727199330258,0.37781,2647.0,2646.8,8.11195739]
[1727199330645,2.74503687,2647.1,2646.7,8.4393623]
[1727199330951,2.74503687,2647.1,2646.6,3.31474017]
[1727199330952,0.3778,2647.0,2646.9,8.0615223]
[1727199331143,0.37781,2646.9,2646.8,8.0615223]
[1727199331349,1.71935,2646.9,2646.8,8.0615223]
[1727199331546,10.1754,2646.9,2645.8,3.2078]
[1727199331749,3.2078,2646.7,2645.8,3.2078]
[1727199331959,3.2078,2646.7,2646.0,0.37793]
[1727199332169,0.37788,2646.5,2646.1,3.58572]
[1727199332359,0.3747,2646.4,2646.1,3.2078]
[1727199332553,0.3747,2646.4,2646.1,3.58572]
[1727199333068,3.2078,2646.8,2646.2,3.7792]
[1727199333252,0.7826,2646.8,2646.4,3.2078]
[1727199333451,0.7826,2646.8,2646.0,3.26]
[1727199333452,0.37787,2646.5,2646.1,3.58572]
[1727199333651,0.7826,2646.8,2646.1,3.58572]
[1727199333848,0.37789,2646.4,2646.1,10.97141581]
[1727199334048,0.94461,2646.7,2646.1,10.97141581]
[1727199334256,0.37791,2646.3,2646.1,3.2078]
[1727199334561,0.3747,2646.2,2646.1,3.2078]
[1727199334765,0.75261,2646.2,2646.1,3.2078]
[1727199334963,3.2078,2646.6,2646.1,3.2078]
[1727199335264,1.19115,2646.7,2646.5,3.2078]
[1727199335563,1.19115,2646.7,2646.4,0.37788]
[1727199335762,0.37787,2646.6,2646.3,3.63789]
[1727199335959,3.2078,2647.1,2646.7,0.37784]
[1727199336178,3.2078,2647.1,2646.3,3.26]
[1727199336179,0.37783,2646.8,2646.6,0.37785]
[1727199336356,0.37783,2646.8,2646.6,3.58565]
[1727199336556,0.37782,2646.9,2646.6,3.58565]
[1727199337254,0.4087,2647.0,2646.9,0.37781]
[1727199337658,0.7865,2647.0,2646.9,3.2078]
[1727199337966,0.7865,2647.0,2646.8,0.37782]
[1727199338162,0.4087,2647.0,2646.9,0.37781]
[1727199338962,0.4087,2647.0,2646.9,3.58561]
[1727199342164,0.4087,2647.0,2646.9,0.37781]
[1727199342553,0.7865,2647.0,2646.9,3.2078]
[1727199343063,0.4087,2647.0,2646.9,0.37781]
[1727199343865,0.7865,2647.0,2646.9,3.58561]
[1727199344057,0.37782,2646.9,2646.8,0.37782]
[1727199344366,0.37789,2646.4,2646.3,3.2078]
[1727199344667,0.4087,2647.0,2646.0,0.37794]
[1727199344668,0.37792,2646.2,2646.0,0.37794]
[1727199344867,0.3683,2646.3,2645.9,3.63795]
[1727199345067,0.37793,2646.1,2645.9,3.63795]
[1727199345363,0.37793,2646.2,2646.0,0.37794]
[1727199345764,1.31306,2646.3,2645.8,3.2078]
[1727199346063,0.37793,2646.1,2645.9,0.37796]
[1727199346864,0.37793,2646.1,2645.8,3.58576]
[1727199347362,0.37793,2646.1,2645.9,0.37795]
[1727199347771,0.3683,2646.3,2645.9,0.37795]
[1727199347772,0.37792,2646.2,2645.9,0.37795]
[1727199348365,0.3683,2646.3,2645.8,6.4678]
[1727199348567,3.2078,2646.9,2646.1,6.4678]
[1727199348769,1.145,2647.2,2646.4,3.26]
[1727199349071,1.145,2647.2,2646.8,3.26]
[1727199349072,1.15858,2647.2,2646.8,3.26]
[1727199349271,0.37779,2647.1,2647.0,0.3778]
[1727199349569,0.94429,2647.6,2647.1,0.37778]
[1727199349761,0.37776,2647.3,2647.2,0.37777]
[1727199350161,0.37777,2647.3,2647.1,0.37778]
[1727199350370,3.959,2647.7,2646.9,3.96871]
[1727199350566,0.37777,2647.3,2647.0,0.3778]
[1727199350766,0.94433,2647.5,2647.0,0.3778]
[1727199350966,0.37778,2647.2,2647.0,0.3778]
[1727199351272,0.94433,2647.5,2646.9,3.2078]
[1727199351469,0.37781,2646.9,2646.8,3.2078]
[1727199352665,0.37781,2646.9,2646.4,3.6431]
[1727199352666,0.364,2647.0,2646.9,0.37781]
[1727199352870,0.364,2647.0,2646.5,3.2078]
[1727199353077,0.3828,2647.1,2646.5,3.2078]
[1727199353264,0.3828,2647.1,2647.0,0.3778]
[1727199353469,3.2078,2647.4,2646.9,0.37781]
[1727199353470,0.94437,2647.4,2646.9,0.37781]
[1727199353665,0.37778,2647.2,2647.0,0.3778]
[1727199355163,0.37779,2647.1,2646.9,0.37781]
[1727199355364,0.37779,2647.1,2646.8,6.4678]
[1727199355365,0.37781,2646.9,2646.8,3.2078]
[1727199355564,0.37786,2646.6,2646.4,0.37788]
[1727199356175,0.3857,2646.8,2646.3,3.58569]
[1727199356176,0.37788,2646.5,2646.3,3.58569]
[1727199356375,0.37788,2646.5,2646.3,3.5857]
[1727199356571,0.37789,2646.4,2646.3,3.2078]
[1727199356974,5.10101,2646.4,2646.3,3.2078]
[1727199357175,0.37792,2646.2,2646.0,0.37793]
[1727199357677,0.37789,2646.4,2645.8,6.4678]
[1727199357878,0.37789,2646.4,2646.0,0.37794]
[1727199357879,0.94476,2646.3,2646.0,0.37794]
[1727199358082,0.75242,2646.2,2646.0,0.37794]
[1727199358575,0.3745,2646.2,2645.8,6.4678]
[1727199358780,0.37792,2646.2,2646.0,0.37793]
[1727199359477,0.3745,2646.3,2645.9,0.9449]
[1727199359773,0.3745,2646.3,2645.8,6.4678]
[1727199359774,0.3713,2646.5,2646.1,3.2078]
[1727199359975,0.3713,2646.5,2646.3,0.37789]
[1727199359976,0.74918,2646.5,2646.3,0.37789]
[1727199360166,0.37784,2646.7,2646.1,3.2078]
[1727199360366,0.94452,2647.0,2646.2,0.7335]
[1727199360576,0.7678,2647.1,2646.4,3.2078]
[1727199360782,0.37783,2646.8,2646.6,0.37785]
[1727199361078,0.37785,2646.7,2646.5,0.37787]
[1727199361289,0.94451,2647.0,2646.4,3.2078]
[1727199361290,0.37787,2646.5,2646.4,3.2078]
[1727199361878,0.94464,2646.7,2646.5,0.37786]
[1727199361879,0.37784,2646.7,2646.5,0.37786]
[1727199362078,0.37784,2646.8,2646.6,0.37786]
[1727199362583,3.7784,2646.7,2646.4,3.2078]
[1727199362779,3.7784,2646.7,2646.2,0.37791]
[1727199362780,0.37787,2646.5,2646.2,0.37791]
[1727199362982,0.3617,2646.4,2646.3,0.3779]
[1727199363179,0.3617,2646.4,2646.1,3.2078]
[1727199363374,0.37791,2646.2,2646.1,3.2078]
[1727199363574,0.3617,2646.4,2646.1,3.58572]
[1727199363575,0.3812,2646.3,2646.1,3.58572]
[1727199363780,0.3617,2646.4,2646.3,0.3779]
[1727199364675,2.33953687,2646.7,2646.5,0.37787]
[1727199365080,2.33618687,2646.7,2646.4,3.2078]
[1727199365275,1.95833687,2646.7,2646.5,0.37787]
[1727199365469,2.33617687,2646.7,2646.5,0.37787]
[1727199365873,0.7375,2646.8,2646.7,0.37784]
[1727199365874,1.95833687,2646.8,2646.7,0.37784]
[1727199366083,1.95833687,2647.0,2646.9,0.37781]
[1727199366285,0.3778,2647.0,2646.6,3.2078]
[1727199366475,0.37783,2646.9,2646.6,3.2078]
[1727199366781,0.3778,2647.0,2646.8,0.37782]
[1727199367178,0.37782,2646.9,2646.7,0.37784]
[1727199367371,0.37781,2647.0,2646.8,0.37782]
[1727199367572,1.95833687,2647.0,2646.6,3.2078]
[1727199367778,0.37783,2646.8,2646.7,0.37784]
[1727199367982,3.40178409,2647.2,2646.4,0.37788]
[1727199367983,0.37786,2646.6,2646.4,0.37788]
[1727199368281,5.66512409,2647.1,2646.4,7.4125]
[1727199368282,1.95833687,2646.8,2646.4,7.4125]
[1727199368482,2.45732409,2647.0,2646.9,0.37781]
[1727199368483,1.95833687,2647.0,2646.9,0.37781]
[1727199368685,0.3691,2647.2,2646.8,0.37782]
[1727199368893,0.37781,2646.9,2646.7,0.37783]
[1727199369185,0.3691,2647.2,2646.8,0.37783]
[1727199369186,0.37781,2647.0,2646.8,0.37783]
[1727199369381,0.3691,2647.2,2646.4,6.4678]
[1727199369583,0.3691,2647.2,2646.9,0.3778]
[1727199369584,0.37779,2647.1,2646.9,0.3778]
[1727199369882,0.74688,2647.2,2647.0,0.3778]
[1727199370086,0.3778,2647.0,2646.8,0.37782]
[1727199370276,0.37781,2647.0,2646.8,0.37782]
[1727199370490,0.37781,2646.9,2646.7,3.58563]
[1727199370677,0.37784,2646.8,2646.6,0.37785]
[1727199370979,0.37784,2646.8,2646.4,6.4678]
[1727199370980,0.37784,2646.8,2646.5,0.37786]
[1727199371282,0.94454,2646.9,2646.4,3.2078]
[1727199371482,1.95833687,2647.1,2646.4,3.58568]
[1727199371483,0.94451,2647.0,2646.4,3.58568]
[1727199371686,0.37787,2646.6,2646.4,3.2078]
[1727199371885,0.37787,2646.6,2646.4,3.58568]
[1727199372079,0.7509,2646.8,2646.4,3.2078]
[1727199372384,0.37787,2646.5,2646.3,0.3779]
[1727199372786,0.3779,2646.4,2646.2,0.37791]
[1727199373781,0.37791,2646.2,2646.1,3.2078]
[1727199374478,1.95833687,2646.4,2646.1,3.2078]
[1727199374479,0.37791,2646.3,2646.1,3.58573]
[1727199374687,0.37791,2646.2,2646.1,3.2078]
[1727199374988,1.95833687,2646.3,2646.1,3.2078]
[1727199375180,6.05282409,2646.6,2646.3,0.37789]
[1727199375181,2.33621687,2646.5,2646.3,0.37789]
[1727199375487,0.37789,2646.4,2646.3,0.3779]
[1727199376082,2.34603687,2646.6,2646.4,0.37789]
[1727199376083,0.37788,2646.5,2646.4,0.37789]
[1727199376283,0.37788,2646.5,2646.3,0.37789]
[1727199376588,1.48302902,2646.5,2646.4,6.84569]
[1727199376790,1.48302902,2646.6,2646.5,0.37787]
[1727199376978,1.48302902,2646.7,2646.6,0.37786]
[1727199377884,1.48280884,2646.7,2646.6,0.37786]
[1727199378085,1.48280884,2646.7,2646.4,3.9419]
[1727199378485,0.37786,2646.6,2646.5,0.37786]
[1727199378686,1.48280884,2646.7,2646.5,0.37787]
[1727199378992,1.48280884,2646.7,2646.6,0.37786]
[1727199379190,1.86064884,2646.7,2646.5,0.37786]
[1727199379389,1.48280884,2646.7,2646.4,3.9419]
[1727199379590,2.90290687,2646.9,2646.4,3.9419]
[1727199379591,1.86066884,2646.6,2646.4,4.31978]
[1727199379794,1.86066884,2646.6,2646.5,0.37787]
[1727199380093,0.94457,2646.9,2646.5,0.37787]
[1727199380094,1.86065884,2646.7,2646.5,0.37787]
[1727199380290,1.48280884,2646.6,2646.5,0.37787]
[1727199380491,1.48280884,2646.6,2646.4,3.2078]
[1727199380492,2.42747884,2646.6,2646.4,3.2078]
[1727199380689,0.3779,2646.3,2646.1,3.58572]
[1727199380996,0.3779,2646.4,2646.2,0.37791]
[1727199381197,1.86070884,2646.4,2646.2,0.37791]
[1727199381396,0.37791,2646.3,2646.1,3.58572]
[1727199381591,0.37791,2646.2,2646.1,3.2078]
[1727199382092,1.3227,2646.2,2646.1,3.2078]
[1727199382289,2.80598384,2646.2,2646.1,3.2078]
[1727199382595,2.80598384,2646.2,2645.8,3.2078]
[1727199382596,0.37796,2645.9,2645.8,3.2078]
[1727199382782,1.86128061,2645.9,2645.8,3.2078]
[1727199382984,1.86128061,2645.9,2645.1,2.28110391]
[1727199382985,4.9338,2645.9,2645.5,3.2078]
[1727199383185,4.9338,2645.9,2645.2,3.26]
[1727199383186,0.37803,2645.5,2645.2,6.4678]
[1727199383491,0.37803,2645.5,2645.3,0.37804]
[1727199383994,1.97776081,2645.6,2645.4,0.37802]
[1727199383995,2.35577081,2645.6,2645.4,0.37802]
[1727199384295,0.37802,2645.5,2645.2,3.2078]
[1727199384494,1.86071324,2645.4,2645.2,3.58585]
[1727199384889,1.48268324,2645.3,2645.2,3.58585]
[1727199385087,1.86072324,2645.3,2645.2,3.2078]
[1727199385287,2.35580081,2645.4,2645.1,0.37806]
[1727199385599,1.48221231,2645.5,2645.3,3.2078]
[1727199385789,1.48221231,2645.7,2645.6,0.378]
[1727199385995,1.48221231,2645.8,2645.7,1.32296]
[1727199386301,1.48221231,2646.1,2645.8,0.94494]
[1727199386601,1.48221231,2646.1,2646.0,3.58574]
[1727199388096,1.48195276,2646.1,2646.0,3.58574]
[1727199388707,0.368,2646.2,2646.1,0.37793]
[1727199389393,2.72368081,2646.2,2646.0,3.58574]
[1727199389988,0.37793,2646.1,2646.0,3.2078]
[1727199390202,3.30052081,2646.1,2646.0,3.2078]
[1727199390401,3.15389081,2646.1,2646.0,3.2078]
[1727199390595,1.17613,2646.1,2646.0,3.2078]
[1727199391099,4.95533,2646.1,2646.0,3.2078]
[1727199391802,7.38238372,2646.1,2646.0,3.2078]
[1727199392196,5.52223,2646.1,2645.6,3.58579]
[1727199392403,0.37796,2645.9,2645.7,0.37799]
[1727199393604,1.86014175,2646.0,2645.7,0.37798]
[1727199393802,1.86014175,2646.0,2645.8,0.37797]
[1727199393998,1.86013175,2646.0,2645.8,0.37796]
[1727199394196,0.368,2646.2,2645.9,3.2078]
[1727199394197,1.85019175,2646.2,2645.9,3.2078]
[1727199394407,0.368,2646.2,2646.1,0.37793]
[1727199394607,0.368,2646.2,2645.9,3.2078]
[1727199394802,0.368,2646.2,2645.6,3.2078]
[1727199395115,0.77293,2646.1,2645.9,0.37795]
[1727199396603,0.37795,2646.0,2645.8,0.37797]
[1727199396802,0.77294,2646.1,2645.9,0.37795]
[1727199397306,0.395,2646.1,2646.0,0.37794]
[1727199398007,1.48219175,2646.3,2646.0,3.7792]
[1727199398207,3.58562,2646.9,2646.3,0.94476]
[1727199398208,1.48219175,2646.8,2646.3,0.94476]
[1727199398512,0.3624,2646.9,2646.7,3.2078]
[1727199398708,3.7784,2646.8,2646.3,3.2078]
[1727199398906,1.48227119,2646.6,2646.5,0.37787]
[1727199399827,1.48227119,2646.8,2646.5,3.7784]
[1727199400112,1.48227119,2646.8,2646.3,4.15253]
[1727199400113,1.48227119,2646.8,2646.7,0.37784]
[1727199401022,0.3624,2646.9,2646.8,0.37783]
[1727199401609,1.84483543,2646.9,2646.8,0.37783]
[1727199402018,1.84483543,2646.9,2646.7,0.37784]
[1727199402208,1.84483543,2646.9,2646.8,0.37783]
[1727199402408,1.84477807,2646.9,2646.6,3.2078]
[1727199402607,1.84477807,2646.9,2646.8,0.37783]
[1727199402608,1.48237807,2646.9,2646.8,0.37783]
[1727199403213,1.48237807,2646.9,2646.7,0.37783]
[1727199403420,1.48237807,2646.8,2646.6,3.58566]
[1727199403737,1.86021807,2646.7,2646.6,3.2078]
[1727199403929,0.75214,2646.7,2646.6,3.2078]
[1727199405236,2.7284383,2646.7,2646.6,3.2078]
[1727199405429,6.5068383,2646.7,2646.6,3.2078]
[1727199405630,4.53054,2646.7,2646.6,3.2078]
[1727199405831,0.3779,2646.3,2646.0,0.37794]
[1727199406032,1.48247445,2646.2,2646.0,0.37794]
[1727199406230,1.48247445,2646.2,2645.9,3.58575]
[1727199406433,1.86797445,2646.2,2646.0,0.37794]
[1727199406632,1.48247445,2646.1,2645.9,3.58575]
[1727199406834,0.3994,2646.0,2645.9,3.2078]
[1727199407035,0.3994,2646.0,2645.9,3.58576]
[1727199407336,0.3994,2646.0,2645.9,3.2078]
[1727199408827,5.66107445,2646.0,2645.6,3.2078]
[1727199409034,5.66107445,2646.0,2645.5,0.37801]
[1727199409035,1.48273192,2645.9,2645.5,0.37801]
[1727199409234,1.48273192,2645.8,2645.5,0.37801]
[1727199409623,1.48273192,2645.9,2645.5,0.37801]
[1727199409827,1.86069192,2645.9,2645.5,0.37801]
[1727199410431,0.37798,2645.8,2645.4,0.77342]
[1727199410628,1.48273192,2645.9,2645.6,0.378]
[1727199411233,1.48273192,2645.8,2645.6,0.378]
[1727199411430,1.48273192,2645.9,2645.4,0.3954]
[1727199411632,1.48273192,2645.9,2645.8,0.37797]
[1727199411836,1.88213192,2646.0,2645.8,0.37797]
[1727199412341,1.48273192,2646.1,2646.0,0.37794]
[1727199412535,1.86983192,2646.4,2646.1,0.37792]
[1727199412732,1.86983192,2646.4,2646.2,0.37791]
[1727199412933,1.86983192,2646.4,2645.9,3.2078]
[1727199413140,1.86983192,2646.4,2646.1,0.37792]
[1727199413336,1.86983192,2646.4,2645.9,3.2078]
[1727199413337,1.86064192,2646.3,2645.9,3.2078]
[1727199413541,1.48273192,2646.3,2646.0,0.37794]
[1727199413727,2.24773192,2646.4,2646.1,0.37792]
[1727199413932,1.48273192,2646.3,2646.2,0.3779]
[1727199414131,1.86983192,2646.4,2646.2,0.3779]
[1727199414337,1.48273192,2646.3,2646.2,0.3779]
[1727199414544,1.86983192,2646.4,2646.3,0.3779]
[1727199414738,1.86983192,2646.4,2646.2,3.58571]
[1727199415042,1.86983192,2646.4,2646.3,0.3779]
[1727199415437,0.3871,2646.4,2646.3,0.3779]
[1727199415631,0.3871,2646.4,2646.2,3.58571]
[1727199415932,0.3779,2646.3,2646.2,3.2078]
[1727199416141,0.37792,2646.2,2645.9,0.37795]
[1727199416341,1.97662011,2646.3,2645.6,3.2078]
[1727199416342,1.48252694,2646.1,2645.6,3.2078]
[1727199416643,1.48252694,2646.0,2645.7,0.37798]
[1727199416854,0.37799,2645.7,2645.6,3.2078]
[1727199417143,1.86051694,2645.7,2645.6,3.2078]
[1727199417346,3.78,2645.7,2645.0,3.2078]
[1727199417536,1.48311221,2645.5,2644.7,0.7581]
[1727199417733,1.48311221,2645.3,2645.2,0.37805]
[1727199417937,1.48311221,2645.4,2644.9,3.2078]
[1727199418137,1.48311221,2645.4,2645.2,3.58586]
[1727199418347,1.48311221,2645.4,2645.2,3.2078]
[1727199418749,2.35832011,2645.6,2645.2,3.2078]
[1727199418750,1.48311221,2645.5,2645.2,3.58585]
[1727199418941,1.48311221,2645.5,2645.2,3.2078]
[1727199419137,1.86113221,2645.5,2645.2,3.2078]
[1727199419338,1.86113221,2645.5,2644.7,3.6022]
[1727199419339,3.26,2645.3,2644.7,3.6022]
[1727199419543,3.26,2645.3,2644.5,3.2078]
[1727199419544,1.48311221,2645.0,2644.5,3.2078]
[1727199419739,5.57102011,2645.2,2644.4,0.37816]
[1727199419740,1.48311221,2644.9,2644.4,0.37816]
[1727199420048,1.48311221,2644.8,2644.5,3.58595]
[1727199420247,1.48311221,2645.0,2644.5,6.4678]
[1727199420436,1.48311221,2645.0,2644.8,3.2078]
[1727199420641,1.48311221,2645.1,2644.8,3.2078]
[1727199420841,1.48311221,2645.1,2644.8,3.58591]
[1727199421051,1.48311221,2645.1,2644.9,0.3781]
[1727199421246,1.48311221,2645.1,2644.8,3.2078]
[1727199421449,1.48311221,2645.3,2644.8,10.2486]
[1727199421650,1.86881221,2645.4,2645.2,0.37806]
[1727199421951,2.45732409,2645.8,2645.1,6.4678]
[1727199421952,1.48311221,2645.5,2645.1,6.4678]
[1727199422152,5.66512409,2646.0,2645.1,6.4678]
[1727199422153,1.48311221,2646.0,2645.4,6.4678]
[1727199422449,1.48311221,2646.3,2646.1,0.37793]
[1727199422642,1.48311221,2646.4,2646.1,6.4678]
[1727199422837,1.48311221,2646.6,2646.3,0.37789]
[1727199423035,1.48311221,2646.7,2646.1,6.4678]
[1727199423249,1.48311221,2646.7,2646.3,0.37789]
[1727199423444,1.48311221,2646.7,2646.1,6.4678]
[1727199423654,2.26231221,2646.8,2646.4,3.2078]
[1727199423954,2.26231221,2646.8,2646.4,3.58568]
[1727199424137,2.26231221,2646.8,2646.4,3.2078]
[1727199424343,2.26231221,2646.8,2646.5,0.37786]
[1727199424557,2.26231221,2646.8,2646.6,0.37785]
[1727199424742,2.26231221,2646.8,2646.4,3.2078]
[1727199424942,1.48311221,2646.7,2646.4,3.2078]
[1727199425444,1.86096221,2646.7,2646.4,3.2078]
[1727199425646,1.48311221,2646.7,2646.4,3.2078]
[1727199425849,1.86096221,2646.7,2646.4,3.2078]
[1727199426051,1.86096221,2646.7,2645.9,4.4538]
[1727199426347,1.86096221,2646.7,2646.2,3.58571]
[1727199426348,1.48311221,2646.7,2646.2,3.58571]
[1727199426944,1.48311221,2646.7,2646.4,0.37788]
[1727199427847,1.48311221,2646.7,2646.2,3.2078]
[1727199428156,1.48311221,2646.5,2646.2,3.2078]
[1727199428354,1.48311221,2646.6,2646.3,0.37789]
[1727199428551,1.48311221,2646.6,2646.3,0.3779]
[1727199428851,1.48311221,2646.6,2646.2,3.2078]
[1727199429048,1.97494995,2646.5,2646.2,3.2078]
[1727199429240,1.48122448,2646.3,2646.2,3.58571]
[1727199430038,1.48126984,2646.3,2646.2,3.58571]
[1727199430239,1.97494995,2646.4,2646.2,3.2078]
[1727199430440,1.97494995,2646.3,2646.2,3.58571]
[1727199430842,1.97494995,2646.4,2646.3,0.3779]
[1727199431144,1.97494995,2646.4,2646.2,3.58571]
[1727199431353,1.97494995,2646.4,2646.3,0.3779]
[1727199431554,2.45732409,2646.6,2646.2,3.2078]
[1727199431852,1.97566588,2646.4,2646.3,0.3779]
[1727199433342,1.97566588,2646.5,2646.4,0.37789]
[1727199434246,2.45732409,2646.7,2646.6,0.37786]
[1727199434247,1.97566588,2646.7,2646.6,0.37786]
[1727199434450,1.48128974,2646.7,2646.6,6.4678]
[1727199434648,1.48128974,2646.8,2646.7,0.37784]
[1727199434946,1.97566588,2647.0,2646.8,0.37782]
[1727199435155,1.97566588,2646.9,2646.8,0.37782]
[1727199435344,1.97566588,2647.0,2646.9,0.37781]
[1727199436053,1.48106227,2647.0,2646.9,0.37781]
[1727199437650,1.48106227,2647.1,2646.9,0.37781]
[1727199437845,1.48106227,2647.1,2646.7,0.37784]
[1727199438047,3.2078,2646.9,2646.3,3.2078]
[1727199438262,1.89676227,2646.8,2646.3,3.2078]
[1727199438454,1.48106227,2646.6,2646.4,0.37789]
[1727199438953,1.85892227,2646.6,2646.3,3.2078]
[1727199439152,0.37788,2646.5,2646.3,3.2078]
[1727199439365,1.48106227,2646.6,2646.4,0.37788]
[1727199439652,1.48106227,2646.6,2646.3,3.58569]
[1727199439860,1.48106227,2646.6,2646.4,0.37788]
[1727199440658,1.48106227,2646.6,2646.5,0.37787]
[1727199440860,1.89576227,2646.7,2646.6,0.37786]
[1727199441061,0.4147,2646.7,2646.6,3.58566]
[1727199441267,1.89576227,2646.7,2646.6,3.58566]
[1727199441565,1.48106227,2646.7,2646.6,3.2078]
[1727199441758,2.76919588,2646.8,2646.6,3.2078]
[1727199441968,1.48092527,2646.7,2646.6,3.2078]
[1727199442165,0.37784,2646.7,2646.6,3.2078]
[1727199442355,1.85879769,2646.7,2646.6,3.2078]
[1727199442560,1.85877984,2646.7,2646.3,3.2078]
[1727199442760,1.48093984,2646.7,2646.4,0.37788]
[1727199443157,1.48093984,2646.6,2646.4,0.37788]
[1727199443659,0.37787,2646.5,2646.3,3.2078]
[1727199443864,1.85880984,2646.5,2646.3,3.2078]
[1727199444066,1.85879984,2646.6,2646.3,3.5857]
[1727199444266,1.48093984,2646.5,2646.3,3.5857]
[1727199444766,1.85880984,2646.6,2646.4,0.37789]
[1727199444971,1.85880984,2646.6,2646.3,3.2078]
[1727199445264,1.48093984,2646.5,2646.3,3.2078]
[1727199445464,1.85881984,2646.5,2646.3,3.2078]
[1727199445665,1.48093984,2646.5,2646.0,3.2078]
[1727199445868,1.85884984,2646.3,2646.0,3.58573]
[1727199446164,1.89273984,2646.2,2646.0,3.2078]
[1727199446355,1.89273984,2646.2,2646.0,3.58573]
[1727199446557,2.27065984,2646.2,2645.9,0.37794]
[1727199446761,2.27065984,2646.2,2645.8,0.37797]
[1727199446762,1.89273984,2646.2,2645.8,0.37797]
[1727199446959,1.89273984,2646.2,2645.7,3.2078]
[1727199447163,1.89273984,2646.2,2645.6,0.37799]
[1727199447164,1.48093984,2646.1,2645.6,0.37799]
[1727199447366,0.37797,2645.8,2645.4,7.3458]
[1727199447561,0.37797,2645.8,2645.6,0.378]
[1727199447957,0.37799,2645.7,2645.5,0.37801]
[1727199448170,0.37799,2645.7,2645.4,3.2078]
[1727199448171,1.48093984,2645.8,2645.4,3.2078]
[1727199448370,0.75391,2645.6,2645.4,3.58582]
[1727199448570,0.75391,2645.6,2645.4,3.2078]
[1727199448762,0.37801,2645.5,2645.4,3.2078]
[1727199449369,1.85683984,2645.6,2645.4,3.2078]
[1727199449562,0.37801,2645.5,2645.4,3.2078]
[1727199450064,5.63894984,2645.5,2645.4,3.2078]
[1727199450367,5.26093984,2645.5,2645.1,0.37807]
[1727199450574,1.48093984,2645.3,2644.9,3.58589]
[1727199450766,1.48093984,2645.2,2644.9,3.58589]
[1727199451271,1.48093984,2645.0,2644.9,3.58589]
[1727199451670,0.37808,2645.1,2644.9,3.2078]
[1727199451968,0.37808,2645.1,2644.9,3.58589]
[1727199452172,1.48104285,2645.0,2644.9,3.58589]
[1727199453566,1.48104285,2645.1,2645.0,0.37809]
[1727199454164,1.48104285,2645.2,2645.1,0.37807]
[1727199455662,1.85910285,2645.2,2645.0,0.37808]
[1727199455862,1.48104285,2645.2,2645.1,0.37807]
[1727199456067,1.85910285,2645.2,2645.0,0.37807]
[1727199456270,0.37807,2645.1,2645.0,0.37807]
[1727199456460,1.48104285,2645.2,2645.1,0.37807]
[1727199457269,0.37806,2645.2,2645.1,0.37807]
[1727199457475,0.37806,2645.2,2645.0,0.37808]
[1727199457668,1.85909285,2645.3,2645.1,0.37807]
[1727199459071,0.37805,2645.3,2645.1,0.37807]
[1727199459990,0.37805,2645.3,2644.9,3.2078]
[1727199459991,0.94511,2645.3,2644.9,3.5859]
[1727199460176,0.94511,2645.3,2644.9,3.2078]
[1727199460177,0.3909,2645.2,2644.9,3.2078]
[1727199460375,0.37808,2645.1,2644.9,3.58589]
[1727199460879,0.3881,2645.0,2644.9,3.58589]
[1727199462879,0.3909,2645.2,2645.1,0.37807]
[1727199462880,0.76896,2645.2,2645.1,0.37807]
[1727199463576,0.76896,2645.2,2644.9,3.2078]
[1727199463577,0.3909,2645.2,2644.9,3.2078]
[1727199463775,0.37808,2645.1,2645.0,0.37808]
[1727199464167,0.76896,2645.2,2645.1,0.37807]
[1727199464773,0.76896,2645.2,2645.0,0.37808]
[1727199465077,0.76896,2645.2,2645.1,0.37807]
[1727199465679,0.37802,2645.5,2645.1,3.26]
[1727199465979,3.6166,2645.8,2645.7,0.37799]
[1727199466176,2.42585285,2646.2,2645.5,4.15284]
[1727199466373,6.41346588,2646.4,2646.0,0.37794]
[1727199466374,1.48104285,2646.3,2646.0,0.37794]
[1727199466581,5.38254,2646.4,2646.0,0.37794]
[1727199466777,0.37792,2646.2,2646.1,0.37793]
[1727199466973,0.37793,2646.1,2646.0,0.37793]
[1727199467179,0.37793,2646.2,2646.0,0.37793]
[1727199467374,0.94476,2646.3,2645.9,0.37795]
[1727199467670,0.37793,2646.1,2645.9,0.37795]
[1727199468075,0.37795,2646.0,2645.7,2.65]
[1727199468278,0.37795,2646.0,2645.9,0.37796]
[1727199468578,0.94481,2646.2,2645.9,0.37795]
[1727199468878,0.37795,2646.0,2645.6,1.2248]
[1727199469176,0.37795,2646.0,2645.9,0.37796]
[1727199469577,5.91884285,2646.4,2645.6,1.2248]
[1727199469784,0.37795,2646.0,2645.6,1.2248]
[1727199470083,0.37792,2646.2,2646.0,0.37794]
[1727199470981,0.37791,2646.3,2646.1,0.37792]
[1727199471183,0.3779,2646.3,2645.8,3.2078]
[1727199471384,0.3779,2646.3,2646.1,0.37792]
[1727199472375,0.3779,2646.3,2645.8,3.2078]
[1727199472376,0.37792,2646.2,2646.0,0.37794]
[1727199472973,0.37792,2646.2,2645.8,3.2078]
[1727199472974,0.37793,2646.1,2645.9,0.37795]
[1727199473186,0.37792,2646.2,2646.0,0.37794]
[1727199473684,0.37793,2646.1,2645.9,0.37795]
[1727199473980,2.17474,2646.4,2646.2,0.37791]
[1727199473981,0.3779,2646.3,2646.2,0.37791]
[1727199474180,0.3779,2646.3,2645.8,4.15272]
[1727199474181,2.35357588,2646.3,2646.1,0.37792]
[1727199474383,2.35357588,2646.3,2645.8,3.2078]
[1727199474583,1.47814559,2646.1,2645.8,3.2078]
[1727199474990,1.47814559,2646.1,2646.0,0.37794]
[1727199475181,2.35357588,2646.3,2646.1,0.37792]